[Event "1st Bangalore GM-Open-A 2024"]
[Site "Bangalore"]
[Date "2024.01.25"]
[Round "9.27"]
[White "Ayush Sharma"]
[Black "Kumar, Gaurav"]
[Result "1/2-1/2"]
[ECO "B30"]
[WhiteElo "2378"]
[BlackElo "1953"]
[Annotator "TA"]
[PlyCount "110"]
[EventDate "2024.01.20"]
[EventType "swiss"]
[EventCountry "IND"]
[SourceTitle "playchess.com"]
[Source "ChessBase"]
[SourceQuality "1"]
[TimeControl "5400+30"]

{[%evp 9,110,22,29,19,40,28,29,19,22,27,20,20,20,-1,0,0,0,9,0,-49,-48,-55,-51,-54,-47,-66,0,0,0,0,0,-7,0,0,0,0,0,0,0,-14,-15,-8,0,-10,-7,-33,0,0,0,0,8,8,36,36,36,36,41,36,36,14,44,45,44,5,41,41,41,41,41,41,41,41,41,41,85,85,85,85,85,85,85,85,85,85,85,85,85,85,85,85,85,85,85,59,85,85,85,85,85,59,85,0,967]} 1. e4 {[%emt 0:00:03]} c5 {[%emt 0:04:45]} 2. Nf3 {[%emt 0:00:03]} Nc6 {[%emt 0:00:14]} 3. Bb5 {[%emt 0:00:03]} Nf6 {[%emt 0:03:21]} 4. Nc3 {[%emt 0:01:11]} Qc7 {[%emt 0:01:01]} 5. O-O {[%emt 0:03:36]} Nd4 {[%emt 0:03:58]} 6. Re1 {[%emt 0:00:01]} e5 {[%emt 0:03:19]} 7. Nxd4 {[%emt 0:25:05]} cxd4 {[%emt 0:01:05]} 8. Nd5 {[%emt 0:00:03] White has an edge.} Nxd5 {[%emt 0:03:48]} 9. exd5 {[%emt 0:00:03] Strongly threatening Qh5.} Bd6 {[%emt 0:01:35]} 10. c3 {[%emt 0:03:32]} O-O {[%emt 0:03:18]} 11. Qh5 {[%emt 0:04:34]} Qc5 {[%emt 0:02:57][%csl LRb5,LRd5]} 12. Bd3 {[%emt 0:01:02][%csl Gd3][%cal Rh5h7] [#]} g6 {[%emt 0:01:16]} 13. Qh4 {[%emt 0:01:33]} Qxd5 {[%emt 0:02:21]} 14. cxd4 {[%emt 0:04:17]} (14. Bc2 $11) 14... Qxd4 $15 {[%emt 0:03:20]} 15. Qxd4 {[%emt 0:00:03]} exd4 {[%emt 0:00:09]} 16. Be4 {[%emt 0:05:15]} Re8 {[%emt 0:13:48]} 17. d3 {[%emt 0:05:12] [#]} Bxh2+ {[%emt 0:01:54]} 18. Kxh2 $11 {[%emt 0:00:06] aiming for Bf4.} d5 {[%emt 0:00:24]} 19. Bg5 {[%emt 0:00:01]} dxe4 {[%emt 0:00:23]} 20. dxe4 {[%emt 0:00:06]} f5 {[%emt 0:05:17]} 21. e5 {[%emt 0:00:14]} Be6 {[%emt 0:00:49]} 22. Red1 {[%emt 0:01:05]} Rac8 {[%emt 0:04:53]} 23. Rxd4 {[%emt 0:06:25]} Rc2 {[%emt 0:00:25]} 24. Rd2 {[%emt 0:00:28]} Rxd2 {[%emt 0:01:56]} 25. Bxd2 {[%emt 0:00:02][%mdl 4096] Endgame. KRB-KRB} Bd5 {[%emt 0:01:28]} 26. Bc3 {[%emt 0:02:04]} Kf7 {[%emt 0:01:32]} 27. Kg3 {[%emt 0:00:25]} Ke6 {[%emt 0:01:57]} 28. f3 {[%emt 0:00:24]} Rd8 {[%emt 0:02:53]} 29. a4 {[%emt 0:01:38]} Bc6 {[%emt 0:01:00]} 30. a5 {[%emt 0:00:40]} a6 {[%emt 0:00:24]} 31. Rh1 {[%emt 0:00:52]} Rd7 {[%emt 0:00:39]} 32. Kf4 {[%emt 0:00:34]} Bb5 {[%emt 0:04:24]} 33. Kg5 {[%emt 0:02:23]} Bc6 {[%emt 0:00:46]} 34. Kh6 {[%emt 0:00:40]} Bb5 {[%emt 0:01:11]} 35. Rh4 {[%emt 0:02:56]} Bc6 {[%emt 0:02:07]} 36. Rc4 {[%emt 0:05:52]} Rf7 {[%emt 0:04:07]} 37. Rf4 {[%emt 0:02:56]} Bd5 {[%emt 0:00:44]} 38. Kg5 {[%emt 0:03:53]} Bc6 {[%emt 0:00:52]} 39. Rh4 {[%emt 0:00:11]} f4 {[%emt 0:03:37]} 40. Rxf4 {[%emt 0:00:28]} h6+ {[%emt 0:02:10]} 41. Kg4 $1 {[%emt 0:00:05]} (41. Kxh6 $2 {loses.} Rxf4 42. Kg5 Rf5+ 43. Kh4 Rh5+ 44. Kg3 Rh1 $19) 41... h5+ {[%emt 0:00:26]} 42. Kg5 {[%emt 0:00:11]} Rxf4 {[%emt 0:00:18]} 43. Kxf4 $16 {[%emt 0:00:02] KB-KB} Bb5 {[%emt 0:00:24]} 44. Kg5 {[%emt 0:01:19]} Bd3 {[%emt 0:00:24]} 45. b4 {[%emt 0:01:22]} Kf7 {[%emt 0:01:44]} 46. Be1 {[%emt 0:01:41]} Bf1 {[%emt 0:01:36]} 47. g3 {[%emt 0:00:17]} Bd3 {[%emt 0:00:23]} 48. f4 {[%emt 0:01:01]} Be4 {[%emt 0:01:06]} 49. Bf2 {[%emt 0:00:36]} Bf5 {[%emt 0:00:21]} 50. Bb6 {[%emt 0:00:56]} Ke6 {[%emt 0:00:35]} 51. Kh6 {[%emt 0:00:08] White is more active.} Kf7 {[%emt 0:00:06]} 52. Bd8 {[%emt 0:01:04]} Be6 {[%emt 0:00:37]} 53. Bf6 {[%emt 0:00:39]} Bf5 {[%emt 0:00:13]} 54. Bh8 {[%emt 0:00:11]} Bd7 {[%emt 0:00:13]} 55. Bf6 {[%emt 0:00:21]} ({White should play} 55. Kg5 $16) 55... Ke6 $2 {[%emt 0:00:12][%mdl 40960] Weighted Error Value: White=0.08 (flawless) /Black=0.09 (flawless) .  Loses game:     	---       	Black=1      Mistake:       	White=2     	Black=1      Inaccurate:     	White=4     	Black=7      OK:         	White=20    	Black=18     Best:        	White=1     	Black=2      Strong:       	White=1     	---       . An unexpected result.} (55... Bf5 $11) 1/2-1/2

[Event "1st Bangalore GM-Open-A 2024"]
[Site "Bangalore"]
[Date "2024.01.25"]
[Round "9.28"]
[White "Alekhya Mukhopadhyay"]
[Black "Nguyen Van Huy"]
[Result "0-1"]
[ECO "B19"]
[WhiteElo "2184"]
[BlackElo "2364"]
[Annotator "TA"]
[PlyCount "90"]
[EventDate "2024.01.20"]
[EventType "swiss"]
[EventCountry "IND"]
[SourceTitle "playchess.com"]
[Source "ChessBase"]
[SourceQuality "1"]
[TimeControl "5400+30"]

{[%evp 20,90,0,0,0,0,0,0,-13,-9,18,-20,-18,-21,-24,-27,-20,-33,-44,-105,-87,-106,-96,-90,-91,-186,-179,-462,-387,-386,-382,-508,-491,-471,-461,-447,-410,-467,-445,-485,-402,-683,-687,-1020,-982,-29991,-600,-717,-629,-625,-633,-942,-968,-1092,-1087,-1043,-922,-1376,-1181,-1187,-1163,-4914,-885,-2344,-2237,-2076,-1001,-6531,-29950,-29987,-2049,-2695,-1341]} 1. e4 {[%emt 0:00:04]} c6 {[%emt 0:00:35]} 2. d4 {[%emt 0:00:08]} d5 {[%emt 0:00:29]} 3. Nc3 {[%emt 0:00:10]} dxe4 {[%emt 0:00:59]} 4. Nxe4 {[%emt 0:00:09]} Bf5 {[%emt 0:00:19]} 5. Ng3 {[%emt 0:00:07]} Bg6 {[%emt 0:00:04]} 6. h4 {[%emt 0:00:08]} h6 {[%emt 0:00:06]} 7. Nf3 {[%emt 0:00:07]} Nd7 {[%emt 0:01:51]} 8. h5 {[%emt 0:00:21]} Bh7 {[%emt 0:00:12]} 9. Bd3 {[%emt 0:00:06]} Bxd3 {[%emt 0:00:21]} 10. Qxd3 {[%emt 0:00:06]} e6 {[%emt 0:00:17]} 11. Bf4 {[%emt 0:00:16]} Qa5+ {[%emt 0:01:46]} 12. Bd2 {[%emt 0:00:05]} Bb4 {[%emt 0:00:39]} 13. c3 {[%emt 0:00:05]} Be7 {[%emt 0:00:36] Die Stellung ist ausgeglichen.} 14. c4 {[%emt 0:00:04]} Qa6 {[%emt 0:03:41]} 15. Ne4 {[%emt 0:14:20]} Ngf6 {[%emt 0:03:30]} 16. b3 {[%emt 0:04:12]} Rd8 {[%emt 0:03:11]} 17. Nxf6+ {[%emt 0:15:25]} Nxf6 {[%emt 0:04:38][%cal Bd7f6,Bf6g4,Bg4f2][%mdl 32]} 18. Qc2 {[%emt 0:07:04]} O-O {[%emt 0:03:43]} 19. O-O-O {[%emt 0:00:00] Schwarz hat alles unter Kontrolle.} (19. Kf1 $15) 19... c5 $17 {[%emt 0:02:27]} 20. dxc5 {[%emt 0:25:15]} Bxc5 {[%emt 0:01:22][%cal Of6g4]} 21. Bc3 {[%emt 0:01:51][%cal Og2g4]} Ng4 {[%emt 0:09:03]} 22. Qe2 {[%emt 0:16:00]} (22. Rhf1 $17) 22... Nxf2 $19 {[%emt 0:04:52]} (22... Bxf2 23. Ne5 Nxe5 24. Qxe5 $11) 23. Qe5 $2 {[%emt 0:01:49]} (23. Rxd8 {einziger Zug.} Rxd8 (23... Nxh1 24. Qe5 $14) 24. Rf1) 23... Rxd1+ {[%emt 0:03:25]} 24. Rxd1 {[%emt 0:00:36][%csl Gc3][%cal Re5g7] [#]} Ba3+ {[%emt 0:00:16]} 25. Kb1 {[%emt 0:04:01][%csl Gc3][%cal Re5g7]} f6 {[%emt 0:00:54]} (25... Nxd1 26. Qxg7#) 26. Qe2 {[%emt 0:01:01]} Nxd1 {[%emt 0:00:10]} 27. Qxd1 {[%emt 0:00:02]} Qd6 {[%emt 0:03:18]} 28. Qe2 {[%emt 0:01:24]} a6 {[%emt 0:03:43]} 29. Nd4 {[%emt 0:01:31]} Re8 {[%emt 0:00:35]} 30. Qf3 {[%emt 0:04:52]} (30. Nc2 $142 Bc5 31. Qe4) 30... Rd8 {[%emt 0:02:45]} 31. Kc2 {[%emt 0:00:43]} Bc5 {[%emt 0:00:56]} 32. Ne2 {[%emt 0:00:44]} b5 {[%emt 0:00:21]} (32... Qd1+ $142 33. Kb2 Rd3 34. Qe4 Re3 35. Ng3 Rxe4 (35... Rxg3 $2 36. Qxe6+ Kh8 37. Qe8+ $19) 36. Nxe4 Be3 (36... Qxh5 $2 37. Nd2 $19) 37. a4 Bc1+ (37... Qxh5 $2 38. Bxf6 Qg6 39. Bc3 $19) 38. Ka1 Bd2+ (38... Qxb3 $2 39. g3 $19) 39. Kb2 Qc1+ 40. Ka2 Bxc3 41. Nxc3 Qc2+ (41... Qxc3 42. b4 Qxb4 43. g3 Qxc4+ 44. Kb1 e5 45. Kb2 e4 46. g4 e3 47. g5 e2 48. gxh6 gxh6 49. a5 e1=Q 50. Ka3 Qec3#) 42. Ka3 Qxc3 43. g4 e5 44. Ka2 e4 45. c5 e3 (45... Qxc5 46. Kb2 e3 47. g5 e2 48. gxf6 e1=Q 49. f7+ Kxf7 50. Ka2 Qe2+ 51. Kb1 Qg1#) 46. c6 e2 (46... bxc6 47. g5 e2 48. gxf6 e1=Q 49. f7+ Kxf7 50. Ka3 Qea1#) 47. cxb7 e1=Q (47... e1=B $2 48. b8=Q+ Kh7 49. Qf4 $19) (47... Qd2+ 48. Ka3 e1=Q 49. b8=R+ Kh7 50. Rh8+ Kxh8 51. g5 Qec1#) 48. b8=Q+ Kh7 49. Qg8+ Kxg8 50. Ka3 Qea1#) 33. Nf4 {[%emt 0:00:41]} Bd4 {[%emt 0:03:22]} 34. Ba5 {[%emt 0:01:06]} Re8 {[%emt 0:01:09]} 35. Qe4 {[%emt 0:00:41]} bxc4 {[%emt 0:00:38]} 36. bxc4 {[%emt 0:00:14]} f5 {[%emt 0:02:10]} 37. Qf3 {[%emt 0:01:00]} Qc5 {[%emt 0:00:23][%csl LRa5,LRc4]} 38. Qd3 {[%emt 0:00:52]} e5 {[%emt 0:02:15]} 39. Bc3 {[%emt 0:00:16]} Bxc3 {[%emt 0:01:57]} 40. Qd7 {[%emt 0:00:12]} Qc8 {[%emt 0:00:50]} 41. Qd5+ {[%emt 0:01:51]} Kh7 {[%emt 0:00:07] [#] Und jetzt ...Ba1 wäre schön.} 42. Ng6 {[%emt 0:00:08]} Bb4 {[%emt 0:00:21] ( -> ...Rd8)} 43. Kb3 {[%emt 0:00:29]} Bc5 {[%emt 0:00:37]} 44. Qf7 {[%emt 0:00:38]} Qe6 {[%emt 0:00:37]} (44... Qc6 $142 45. Qd5 Qb6+ 46. Kc3 Rb8 (46... Qa5+ {wird mattgesetzt.} 47. Kd3 Qa3+ 48. Ke2 Qe3+ 49. Kd1 Rb8 50. Nf8+ Bxf8 51. Qd2 Rb1+ 52. Kc2) 47. Qxe5 Qb2+ 48. Kd3 Qb1+ (48... Rd8+ 49. Qd5 Qb1+ 50. Kd2 Rxd5+ 51. cxd5 Bb4+ 52. Ke3 Qe4+ 53. Kf2 Be1+ 54. Kf1 Bg3 55. Nf8+ Kg8 56. Ng6 Qe1#) 49. Kd2 Qxa2+ 50. Kd3 Rb3+ 51. Qc3 Qb1+ (51... Rxc3+ {ist ein Selbstmatt.} 52. Kxc3 Qb1 53. Nf8+ Kg8 54. Kd2 Bb4+ 55. Ke3 Qe4+ 56. Kf2 Bc5+ 57. Kf1 Qe3 58. Ng6 Qf2#) 52. Kd2 Rxc3 (52... Rb2+ {führt zum Matt.} 53. Qxb2 Qxb2+ 54. Kd3 Qb3+ 55. Ke2 Qc2+ 56. Ke1 Qf2+ 57. Kd1 Be3 58. Nf8+ Kg8 59. Ng6 Qd2#) 53. Nf8+ Bxf8 54. Kxc3 Bb4+ 55. Kd4 Qe4#) 45. Qc7 {[%emt 0:00:06]} Qb6+ {[%emt 0:00:13] Gewichteter Fehlerwert: Weiß=1.08/Schwarz=0.39.  Fehler:       	Weiß=4     	---        Ungenau:       	Weiß=3     	Schwarz=1     OK:         	Weiß=6     	Schwarz=9     Bester:       	---       	Schwarz=2} 0-1

[Event "1st Bangalore GM-Open-A 2024"]
[Site "Bangalore"]
[Date "2024.01.25"]
[Round "9.29"]
[White "Lasya.g"]
[Black "Fawzy, Adham"]
[Result "0-1"]
[ECO "B32"]
[WhiteElo "1945"]
[BlackElo "2522"]
[Annotator "RC"]
[PlyCount "97"]
[EventDate "2024.01.20"]
[EventType "swiss"]
[EventCountry "IND"]
[SourceTitle "playchess.com"]
[Source "ChessBase"]
[SourceQuality "1"]
[TimeControl "5400+30"]

1. e4 {[%emt 0:00:04]} c5 {[%emt 0:00:28]} 2. Nf3 {[%emt 0:00:11]} Nc6 {[%emt 0:00:52]} 3. d4 {[%emt 0:04:50]} cxd4 {[%emt 0:00:59]} 4. Nxd4 {[%emt 0:00:05]} e5 {[%emt 0:00:20]} 5. Nb5 {[%emt 0:00:35]} d6 {[%emt 0:00:25]} 6. c4 {[%emt 0:09:45]} Be7 {[%emt 0:01:11]} 7. N1c3 {[%emt 0:01:55]} a6 {[%emt 0:01:39]} 8. Na3 {[%emt 0:00:08]} Be6 {[%emt 0:00:07]} 9. Be2 {[%emt 0:05:35]} Bg5 {[%emt 0:01:03]} 10. Nc2 {[%emt 0:06:15]} h6 {[%emt 0:02:41]} 11. Bg4 {[%emt 0:02:09]} Bxc4 {[%emt 0:12:38]} 12. Bxg5 {[%emt 0:04:50]} hxg5 {[%emt 0:01:31]} 13. Ne3 {[%emt 0:03:48]} Be6 {[%emt 0:00:54]} 14. Bxe6 {[%emt 0:02:41]} fxe6 {[%emt 0:02:08]} 15. Nc4 {[%emt 0:10:42]} Nd4 {[%emt 0:01:17]} 16. Ne2 {[%emt 0:01:35]} b5 {[%emt 0:01:11]} 17. Nxd4 {[%emt 0:06:08]} exd4 {[%emt 0:01:25]} 18. Nd2 {[%emt 0:03:20]} Nf6 {[%emt 0:13:41]} 19. a4 {[%emt 0:04:00]} g4 {[%emt 0:04:38]} 20. Qb3 {[%emt 0:02:10]} Kf7 {[%emt 0:01:56]} 21. axb5 {[%emt 0:03:58]} axb5 {[%emt 0:00:44]} 22. O-O {[%emt 0:00:06]} Rh5 {[%emt 0:02:44]} 23. f4 {[%emt 0:01:36]} Rxa1 {[%emt 0:07:50]} 24. Rxa1 {[%emt 0:00:07]} Qc7 {[%emt 0:00:21]} 25. f5 {[%emt 0:02:32]} d5 {[%emt 0:00:47]} 26. fxe6+ {[%emt 0:00:13]} Kg6 {[%emt 0:01:12]} 27. e5 {[%emt 0:03:06]} Qxe5 {[%emt 0:03:17]} 28. Qd3+ {[%emt 0:01:04]} Ne4 {[%emt 0:04:42]} 29. Nf1 {[%emt 0:00:51]} Rf5 {[%emt 0:05:08]} 30. Re1 {[%emt 0:07:20]} Qxe6 {[%emt 0:03:05]} 31. Qxd4 {[%emt 0:00:24]} Qf6 {[%emt 0:00:46]} 32. Qxf6+ {[%emt 0:02:23]} Nxf6 {[%emt 0:01:05]} 33. Rd1 {[%emt 0:04:17]} Re5 {[%emt 0:02:34]} 34. Nd2 {[%emt 0:01:42]} Re3 {[%emt 0:02:04]} 35. Kf2 {[%emt 0:00:42]} d4 {[%emt 0:04:14]} 36. Re1 {[%emt 0:05:35]} Nd5 {[%emt 0:00:35]} 37. Rd1 {[%emt 0:00:33]} Nf4 {[%emt 0:02:08]} 38. Kf1 {[%emt 0:01:02]} Kf5 {[%emt 0:00:56]} 39. g3 {[%emt 0:00:23]} Nd3 {[%emt 0:01:54]} 40. b3 {[%emt 0:00:55]} Ke5 {[%emt 0:00:45]} 41. Ra1 {[%emt 0:00:47]} Kd5 {[%emt 0:00:02]} 42. Rb1 {[%emt 0:00:16]} Ne5 {[%emt 0:00:57]} 43. Kf2 {[%emt 0:00:37]} Rc3 {[%emt 0:01:09]} 44. Ke2 {[%emt 0:00:31]} Rc2 {[%emt 0:00:22]} 45. Kd1 {[%emt 0:00:38]} Ra2 {[%emt 0:00:03]} 46. Rc1 {[%emt 0:00:32]} Nf3 {[%emt 0:00:18]} 47. Rc2 {[%emt 0:00:29]} Rxc2 {[%emt 0:00:19]} 48. Kxc2 {[%emt 0:00:19]} Nxd2 {[%emt 0:00:02]} 49. Kxd2 {[%emt 0:00:10]} 0-1

[Event "1st Bangalore GM-Open-A 2024"]
[Site "Bangalore"]
[Date "2024.01.25"]
[Round "9.30"]
[White "Das, Sayantan"]
[Black "Rosh Jain"]
[Result "1-0"]
[ECO "B51"]
[WhiteElo "2514"]
[BlackElo "2221"]
[Annotator "TA"]
[PlyCount "97"]
[EventDate "2024.01.20"]
[EventType "swiss"]
[EventCountry "IND"]
[SourceTitle "playchess.com"]
[Source "ChessBase"]
[SourceQuality "1"]
[TimeControl "5400+30"]

{[%evp 9,97,15,16,14,17,16,26,26,30,22,64,49,62,60,73,65,61,61,75,56,68,70,118,111,124,102,159,162,181,165,158,163,213,212,206,211,252,231,204,149,168,181,295,297,312,256,565,57,64,65,126,130,110,111,139,78,85,92,111,114,108,116,109,114,122,122,121,117,133,126,132,129,129,129,142,131,139,137,265,250,972,972,901,878,29993,29994,29995,29996,29996,29997]} 1. e4 {[%emt 0:00:13]} c5 {[%emt 0:00:09]} 2. Nf3 {[%emt 0:00:13]} d6 {[%emt 0:00:08]} 3. Bb5+ {[%emt 0:00:13]} Nd7 {[%emt 0:00:12]} 4. c4 {[%emt 0:00:36]} Ngf6 {[%emt 0:00:26]} 5. Nc3 {[%emt 0:01:07]} a6 {[%emt 0:00:25]} 6. Ba4 {[%emt 0:00:15]} g6 {[%emt 0:01:25]} 7. O-O {[%emt 0:03:08]} Bg7 {[%emt 0:01:11]} 8. d3 {[%emt 0:01:50] White has an edge.} O-O {[%emt 0:00:55]} 9. h3 {[%emt 0:00:10]} e5 {[%emt 0:04:21]} 10. a3 {[%emt 0:01:26]} b6 {[%emt 0:09:59]} 11. b4 {[%emt 0:03:01]} Qc7 {[%emt 0:01:40][%cal Ob6b5]} 12. Bd2 {[%emt 0:12:55]} Bb7 {[%emt 0:01:15]} 13. Rb1 {[%emt 0:00:57]} Rab8 {[%emt 0:10:16]} 14. Nh2 {[%emt 0:02:38]} Rfd8 {[%emt 0:07:14][%cal Ob6b5]} 15. Ng4 {[%emt 0:03:31]} h5 {[%emt 0:07:38]} (15... Nxg4 $14 16. hxg4 (16. Qxg4 Nf8 $14) 16... Rdc8) 16. Nh6+ $16 {[%emt 0:02:13]} Bxh6 {[%emt 0:12:50]} 17. Bxh6 {[%emt 0:00:43]} Nf8 {[%emt 0:09:42]} ({Better is} 17... cxb4 18. axb4 b5) 18. f4 {[%emt 0:06:46]} exf4 {[%emt 0:00:51]} 19. Rxf4 {[%emt 0:00:55]} N6d7 {[%emt 0:04:03]} 20. Qd2 {[%emt 0:08:12] White is much more active.} Ne6 {[%emt 0:04:31]} (20... Ne5 $142 21. Rbf1 Rbc8) 21. Rf2 $18 {[%emt 0:07:24] Nd5 would now be deadly.} Ne5 {[%emt 0:01:07]} 22. Rbf1 {[%emt 0:00:08]} Rdc8 {[%emt 0:05:22]} 23. Nd5 {[%emt 0:04:22]} Bxd5 {[%emt 0:00:14]} 24. exd5 {[%emt 0:00:09]} Ng7 {[%emt 0:01:32]} 25. Bg5 {[%emt 0:01:24] Hoping for Bf6.} Rf8 {[%emt 0:00:23]} (25... f5 $142) 26. Bf6 {[%emt 0:02:06]} Kh7 {[%emt 0:01:03] Wards off Qh6+} 27. Bc2 {[%emt 0:00:43] This pair of bishops is nice.} Ne8 $2 {[%emt 0:00:50]} (27... Nd7 {is more resistant.} 28. d4 Nxf6) 28. Bd1 $2 {[%emt 0:05:32]} (28. d4 $18 Nd7 (28... cxd4 $2 29. Bxe5 dxe5 30. Qg5 $18) 29. Be7) 28... Nxf6 $14 {[%emt 0:01:00]} 29. Rxf6 {[%emt 0:00:03][%cal Od1h5]} Kg7 {[%emt 0:04:18] [#]} ({Black should play} 29... h4 $1 $14) 30. Bxh5 $1 $16 {[%emt 0:00:27][%mdl 512]} Rbe8 {[%emt 0:02:10]} (30... a5 31. Qg5) 31. Be2 $36 {[%emt 0:02:45][%mdl 2048] White has strong initiative.} Qe7 {[%emt 0:01:19]} 32. R6f2 {[%emt 0:01:52]} (32. Qf4 $142) 32... f5 {[%emt 0:01:48]} 33. d4 {[%emt 0:00:47]} Nd7 {[%emt 0:01:04][%cal Be5d7,Bd7f6,Bf6e4][%mdl 32]} 34. Bd1 {[%emt 0:00:38]} Nf6 {[%emt 0:03:42]} 35. dxc5 {[%emt 0:01:27]} bxc5 {[%emt 0:00:16]} 36. Ba4 {[%emt 0:07:40]} Rc8 {[%emt 0:01:02]} 37. Bc6 {[%emt 0:02:08]} Ne4 {[%emt 0:00:57][%csl LRd2,LRf2]} 38. Qb2+ {[%emt 0:00:03]} Kg8 {[%emt 0:00:54]} 39. Rf3 {[%emt 0:00:47]} cxb4 {[%emt 0:00:06]} 40. axb4 {[%emt 0:00:18]} Rb8 {[%emt 0:00:43]} 41. b5 {[%emt 0:01:12]} Qa7+ {[%emt 0:00:29]} 42. Kh2 {[%emt 0:00:14]} a5 {[%emt 0:00:18]} 43. Rb1 {[%emt 0:04:46][%cal Bf1b1,Bb1c1,Bc1c7][%mdl 32]} Qc5 {[%emt 0:00:38]} (43... g5 $16) 44. Bd7 $18 {[%emt 0:00:27]} Qxc4 $2 {[%emt 0:01:29]} (44... Qb4 45. Qxb4 axb4 46. Rxb4 Kg7) 45. Be6+ {[%emt 0:00:33]} Kh7 {[%emt 0:00:14][%cal Bg8h7,Bh7h6,Bh6g5][%mdl 32]} 46. Rc1 {[%emt 0:00:25]} ({Less strong is} 46. b6 Nc5 $16) 46... Qxb5 {[%emt 0:00:47]} 47. Rc7+ {[%emt 0:00:07] White mates.} Kh6 {[%emt 0:00:25]} 48. Qg7+ {[%emt 0:00:14]} Kg5 {[%emt 0:00:06] [#]} 49. h4+ $1 {[%emt 0:00:05][%mdl 512] Weighted Error Value: White=0.24 (precise) /Black=0.37.  Missed win:     	White=1     	---        Mistake:       	White=1     	Black=8      Inaccurate:     	---       	Black=1      OK:         	White=21    	Black=12     Best:        	White=1     	Black=1      Brilliant:      	White=1     	---} 1-0